bitfinex-derivatives/quotes_BTCF0:USTF0_20250713
["timestamp","ask_amount","ask_price","bid_price","bid_amount"]
[1752412526198,0.009,118330.0,118320.0,1.2180526]
[1752412527493,0.6438884,118330.0,118320.0,0.2433426]
[1752412527710,0.2830884,118330.0,118320.0,0.2433426]
[1752412529003,0.2830884,118330.0,118320.0,0.1699626]
[1752412529707,1.0629124,118330.0,118320.0,0.001]
[1752412529898,0.6438884,118330.0,118320.0,0.1699627]
[1752412530402,0.6438884,118330.0,118320.0,0.001]
[1752412530609,0.6438884,118330.0,118320.0,0.1699627]
[1752412532704,0.2830884,118330.0,118320.0,0.1699627]
[1752412532901,0.2830884,118330.0,118320.0,0.2706527]
[1752412533104,0.8740084,118330.0,118320.0,0.2706527]
[1752412533312,0.2830884,118330.0,118320.0,0.2706527]
[1752412534609,0.11414,118330.0,118320.0,0.6314527]
[1752412535008,0.03242,118330.0,118320.0,0.6314527]
[1752412535306,0.009,118330.0,118320.0,0.6314527]
[1752412535512,0.009,118330.0,118320.0,0.63990233]
[1752412540815,0.06518,118330.0,118320.0,0.63990233]
[1752412541013,0.11204,118330.0,118320.0,0.63990233]
[1752412541615,0.06518,118330.0,118320.0,0.63990233]
[1752412542918,0.06518,118330.0,118320.0,1.23026233]
[1752412544618,0.2809884,118330.0,118320.0,1.23026233]
[1752412545118,0.2809884,118330.0,118320.0,1.22994233]
[1752412545320,0.11004,118330.0,118320.0,1.22994233]
[1752412546120,0.11004,118330.0,118320.0,1.23094233]
[1752412546321,0.11004,118330.0,118320.0,1.23090233]
[1752412546821,0.10704,118330.0,118320.0,1.22990233]
[1752412547116,0.06118,118330.0,118320.0,1.23070233]
[1752412547321,0.005,118330.0,118320.0,1.23070233]
[1752412548315,0.005,118330.0,118320.0,1.23058233]
[1752412548515,0.1739484,118330.0,118320.0,1.23058233]
[1752412548718,0.005,118330.0,118320.0,1.23058233]
[1752412548918,0.1988084,118330.0,118320.0,1.23058233]
[1752412549221,0.02986,118330.0,118320.0,1.23058233]
[1752412551612,0.005,118330.0,118320.0,1.23058233]
[1752412559725,0.005,118330.0,118320.0,1.26089393]
[1752412563035,0.005,118330.0,118320.0,1.55449393]
[1752412563220,0.005,118330.0,118320.0,1.59996133]
[1752412564224,0.005,118330.0,118320.0,1.56964973]
[1752412567634,0.004,118330.0,118320.0,1.56864973]
[1752412567833,0.005,118330.0,118320.0,1.56964973]
[1752412568133,0.005,118330.0,118320.0,1.56864973]
[1752412568328,0.005,118330.0,118320.0,1.57064973]
[1752412571332,0.005,118330.0,118320.0,0.0484674]
[1752412571333,0.6363184,118330.0,118320.0,0.0484674]
[1752412571535,1.2255984,118330.0,118320.0,0.03335303]
[1752412571730,1.2255984,118330.0,118320.0,0.003]
[1752412572431,0.1689627,118320.0,118310.0,0.0002]
[1752412572738,0.28647532,118310.0,118300.0,0.26275108]
[1752412573039,0.28647532,118310.0,118300.0,0.18673065]
[1752412573226,0.28647532,118310.0,118300.0,0.1689912]
[1752412573630,0.30333706,118310.0,118300.0,0.1689912]
[1752412574031,0.89265706,118310.0,118300.0,0.1992612]
[1752412574346,0.89365706,118310.0,118300.0,0.2042612]
[1752412575039,0.89365706,118310.0,118300.0,0.2771412]
[1752412575637,0.13536016,118310.0,118300.0,0.2771412]
[1752412575938,0.13536016,118310.0,118300.0,0.2801412]
[1752412576132,0.13536016,118310.0,118300.0,0.6409412]
[1752412577136,0.03379016,118310.0,118300.0,0.6409412]
[1752412577740,0.03379016,118310.0,118300.0,0.70964351]
[1752412579241,0.01692842,118310.0,118300.0,0.70964351]
[1752412579840,0.28747532,118310.0,118300.0,0.70964351]
[1752412580042,0.28747532,118310.0,118300.0,0.6159512]
[1752412580238,0.28747532,118310.0,118300.0,0.6409412]
[1752412580641,0.28747532,118310.0,118300.0,0.2551512]
[1752412580943,0.28747532,118310.0,118300.0,0.2072612]
[1752412581143,0.87683532,118310.0,118300.0,0.2072612]
[1752412581549,0.87683532,118310.0,118300.0,0.1769912]
[1752412581746,1.23763532,118310.0,118300.0,0.1769912]
[1752412582238,0.28747532,118310.0,118300.0,0.2801412]
[1752412583243,0.07099842,118310.0,118300.0,0.6409412]
[1752412583444,0.01692842,118310.0,118300.0,1.2303012]
[1752412584742,0.11849842,118310.0,118300.0,0.6409412]
[1752412584943,0.11849842,118310.0,118300.0,1.2303012]
[1752412586148,0.28747532,118310.0,118300.0,1.2303012]
[1752412586347,0.11849842,118310.0,118300.0,1.2303012]
[1752412593746,0.01692842,118310.0,118300.0,1.2303012]
[1752412594051,0.18590532,118310.0,118300.0,1.2303012]
[1752412594347,0.28747532,118310.0,118300.0,1.2302612]
[1752412594551,0.11849842,118310.0,118300.0,1.2302612]
[1752412597649,0.28747532,118310.0,118300.0,1.2302612]
[1752412598055,0.11849842,118310.0,118300.0,1.2302612]
[1752412598255,0.28747532,118310.0,118300.0,1.2302612]
[1752412599256,0.28747532,118310.0,118300.0,0.6409412]
[1752412599451,0.30502641,118310.0,118300.0,0.2801412]
[1752412599953,0.30502641,118310.0,118300.0,0.03827]
[1752412600250,0.89430641,118310.0,118300.0,0.008]
[1752412600455,1.25510641,118310.0,118300.0,0.1769912]
[1752412600656,1.25510641,118310.0,118300.0,0.008]
[1752412601058,1.25511644,118310.0,118300.0,0.008]
[1752412601357,1.25511644,118310.0,118300.0,0.004]
[1752412601957,1.25411644,118310.0,118300.0,0.1719912]
[1752412602255,1.25511644,118310.0,118300.0,0.1729912]
[1752412602855,1.25511644,118310.0,118300.0,0.1699912]
[1752412606367,0.30503644,118310.0,118300.0,0.21749332]
[1752412606565,0.89427644,118310.0,118300.0,0.28714332]
[1752412608972,0.89427644,118310.0,118300.0,0.64794332]
[1752412609273,0.30503644,118310.0,118300.0,0.64794332]
[1752412609473,0.72529954,118310.0,118300.0,0.64794332]
[1752412609673,0.89427644,118310.0,118300.0,0.64794332]
[1752412609871,0.13605954,118310.0,118300.0,0.64794332]
[1752412610270,0.30503644,118310.0,118300.0,0.64794332]
[1752412610476,0.13605954,118310.0,118300.0,0.64794332]
[1752412610774,0.30503644,118310.0,118300.0,0.64794332]
[1752412612374,0.30503644,118310.0,118300.0,0.28714332]
[1752412616774,0.30503644,118310.0,118300.0,0.26407332]
[1752412616979,0.30503644,118310.0,118300.0,0.28714332]
[1752412617172,0.89423644,118310.0,118300.0,0.28714332]
[1752412617369,0.13605954,118310.0,118300.0,0.28714332]
[1752412617979,0.05707954,118310.0,118300.0,0.64794332]
[1752412619476,0.30575644,118310.0,118300.0,0.64794332]
[1752412620579,0.30575644,118310.0,118300.0,0.28714332]
[1752412621279,0.28982802,118310.0,118300.0,0.28714332]
[1752412626372,0.65062802,118310.0,118300.0,0.01850212]
[1752412626681,0.28982802,118310.0,118300.0,0.22016332]
[1752412626875,0.28982802,118310.0,118300.0,0.2026612]
[1752412627180,0.65062802,118310.0,118300.0,0.2026612]
[1752412629080,0.65062802,118310.0,118300.0,0.2484112]
[1752412629676,0.28982802,118310.0,118300.0,0.2484112]
[1752412629873,0.65062802,118310.0,118300.0,0.2484112]
[1752412630476,0.65062802,118310.0,118300.0,0.001]
[1752412630676,0.65062802,118310.0,118300.0,0.1699912]
[1752412630881,0.65062802,118310.0,118300.0,0.2484112]
[1752412631776,0.65062802,118310.0,118300.0,0.001]
[1752412632482,0.81968402,118310.0,118300.0,0.001]
[1752412636687,0.65062802,118310.0,118300.0,0.001]
[1752412640989,0.03026,118300.0,118280.0,0.00169083]
[1752412641192,0.2453483,118260.0,118250.0,0.37338176]
[1752412641389,0.8597583,118260.0,118250.0,0.37338176]
[1752412642488,0.8597583,118260.0,118250.0,0.38169678]
[1752412643192,1.2205583,118260.0,118250.0,0.38169678]
[1752412643597,0.8597583,118260.0,118250.0,0.38169678]
[1752412643797,0.8617583,118260.0,118250.0,0.38569678]
[1752412646700,0.59252,118260.0,118250.0,0.74649678]
[1752412646894,0.002,118260.0,118250.0,0.74949678]
[1752412647590,0.02573,118260.0,118250.0,0.74949678]
[1752412652699,0.1947783,118260.0,118250.0,0.74949678]
[1752412652899,0.2408183,118260.0,118250.0,0.74949678]
[1752412653301,0.2710783,118260.0,118250.0,0.74949678]
[1752412653702,0.2710783,118260.0,118250.0,0.38869678]
[1752412654502,0.2710783,118260.0,118250.0,0.36462678]
[1752412654697,0.2710783,118260.0,118250.0,0.32236208]
[1752412654698,0.28874265,118260.0,118250.0,0.32236208]
[1752412656204,0.28874265,118260.0,118250.0,0.34501208]
[1752412657202,0.28874417,118260.0,118250.0,0.32236208]
[1752412657406,0.28874417,118260.0,118250.0,0.31404706]
[1752412657607,0.64954417,118260.0,118250.0,0.31404706]
[1752412657810,0.64954417,118260.0,118250.0,0.26829706]
[1752412658311,0.64954417,118260.0,118250.0,0.23562706]
[1752412659109,0.64954417,118260.0,118250.0,0.2183142]
[1752412660614,0.64954417,118260.0,118250.0,0.2163142]
[1752412660909,0.64954417,118260.0,118250.0,0.3177242]
[1752412661103,1.23890417,118260.0,118250.0,0.3177242]
[1752412662310,1.23790417,118260.0,118250.0,0.3157242]
[1752412662514,0.64854417,118260.0,118250.0,0.3157242]
[1752412662804,0.11869587,118260.0,118250.0,0.3157242]
[1752412663004,0.59036,118260.0,118250.0,0.6765242]
[1752412663202,0.001,118260.0,118250.0,0.6765242]
[1752412664210,0.59036,118260.0,118250.0,0.6765242]
[1752412664611,0.66281,118260.0,118250.0,0.6765242]
[1752412666313,0.6804838,118260.0,118250.0,0.6765242]
[1752412666512,0.6329638,118260.0,118250.0,0.6765242]
[1752412666812,0.6080338,118260.0,118250.0,0.6765242]
[1752412667013,0.59036,118260.0,118250.0,0.6765242]
[1752412667211,0.12228657,118260.0,118250.0,0.6765242]
[1752412667809,0.07476657,118260.0,118250.0,0.6765242]
[1752412668009,0.01867657,118260.0,118250.0,0.6765242]
[1752412668211,0.07245,118280.0,118270.0,0.202134]
[1752412668411,0.04260658,118280.0,118270.0,0.64864932]
[1752412668712,0.01767658,118280.0,118270.0,0.64864932]
[1752412669104,0.92261137,118290.0,118280.0,0.2704297]
[1752412669305,0.35092698,118290.0,118280.0,0.6312297]
[1752412669507,0.89803558,118290.0,118280.0,0.6292297]
[1752412670008,0.89803558,118290.0,118280.0,0.6282297]
[1752412670718,0.90003558,118290.0,118280.0,0.6282297]
[1752412671419,0.90103558,118290.0,118280.0,0.6292297]
[1752412672316,0.90003558,118290.0,118280.0,0.2674297]
[1752412672517,0.90103558,118290.0,118280.0,0.6322297]
[1752412673022,0.89903558,118290.0,118280.0,0.6322297]
[1752412674620,0.06197918,118290.0,118280.0,0.6322297]
[1752412674919,0.01937357,118290.0,118280.0,0.6322297]
[1752412676124,0.01937357,118290.0,118280.0,1.2214697]
[1752412676315,0.003,118290.0,118280.0,1.2214697]
[1752412678416,0.07245,118310.0,118300.0,0.1689911]
[1752412678621,0.04258199,118310.0,118300.0,1.8096411]
[1752412678816,0.08861222,118320.0,118300.0,2.01899108]
[1752412679026,0.01765045,118320.0,118310.0,0.6311868]
[1752412679426,0.10761,118330.0,118320.0,0.2703725]
[1752412679623,0.07772923,118330.0,118320.0,0.28772218]
[1752412679828,0.04656923,118330.0,118320.0,1.82684218]
[1752412680127,0.04656923,118330.0,118320.0,1.82584218]
[1752412680322,0.02163923,118330.0,118320.0,1.82584218]
[1752412680725,0.004,118330.0,118320.0,1.82584218]
[1752412681026,0.004,118330.0,118320.0,1.8332509]
[1752412681027,0.005,118330.0,118320.0,1.8332509]
[1752412681627,0.006,118330.0,118320.0,1.8342509]
[1752412681923,0.006,118330.0,118320.0,2.0032749]
[1752412682129,0.05609,118350.0,118340.0,0.2703439]
[1752412682323,0.06363389,118360.0,118350.0,0.1689196]
[1752412682530,0.13732687,118360.0,118350.0,0.6311296]
[1752412683238,0.89531217,118360.0,118350.0,0.3608]
[1752412683423,0.1689481,118330.0,118320.0,0.001]
[1752412683621,1.23826964,118330.0,118320.0,0.001]
[1752412684032,1.23826964,118330.0,118320.0,0.00269026]
[1752412684426,1.23826964,118330.0,118320.0,0.17165276]
[1752412684630,1.23826964,118330.0,118320.0,0.20475276]
[1752412684921,0.64922964,118330.0,118320.0,0.26680054]
[1752412685127,1.23826964,118330.0,118320.0,0.26680054]
[1752412685527,0.65022964,118330.0,118320.0,0.29448054]
[1752412685735,1.23926964,118330.0,118320.0,0.27180054]
[1752412686128,0.12048154,118330.0,118320.0,0.63260054]
[1752412686334,0.70952154,118330.0,118320.0,0.29448054]
[1752412686632,0.70952154,118330.0,118320.0,0.65528054]
[1752412687432,0.28942974,118330.0,118320.0,0.65528054]
[1752412687632,0.28942974,118330.0,118320.0,0.29448054]
[1752412687931,0.87842974,118330.0,118320.0,0.29448054]
[1752412688724,1.23922974,118330.0,118320.0,0.02407804]
[1752412689634,1.23922974,118330.0,118320.0,0.19304054]
[1752412692133,0.65022974,118330.0,118320.0,0.19304054]
[1752412692339,1.23918974,118330.0,118320.0,0.19304054]
[1752412693641,1.2567787,118330.0,118320.0,0.19304054]
[1752412694138,1.2567387,118330.0,118320.0,0.19304054]
[1752412697544,0.7269905,118330.0,118320.0,0.29835054]
[1752412697744,0.6794705,118330.0,118320.0,0.65915054]
[1752412698443,0.0905505,118330.0,118320.0,0.65915054]
[1752412698944,0.6794305,118330.0,118320.0,0.65915054]
[1752412699145,0.0905505,118330.0,118320.0,0.65915054]
[1752412699544,0.6794305,118330.0,118320.0,0.65915054]
[1752412699941,0.8483787,118330.0,118320.0,0.65915054]
[1752412700142,0.89543856,118330.0,118320.0,0.29835054]
[1752412700850,0.89543856,118330.0,118320.0,0.65915054]
[1752412706854,0.89543856,118330.0,118320.0,0.29835054]
[1752412707158,0.13761036,118330.0,118320.0,0.29835054]
[1752412707357,0.72641036,118330.0,118320.0,0.65915054]
[1752412708753,0.89535856,118330.0,118320.0,0.65915054]
[1752412710158,0.72641036,118330.0,118320.0,0.65915054]
[1752412710459,0.89535856,118330.0,118320.0,0.65915054]
[1752412711058,0.72641036,118330.0,118320.0,0.65915054]
[1752412711459,0.89535856,118330.0,118320.0,0.65915054]
[1752412711862,0.72641036,118330.0,118320.0,0.65915054]
[1752412712160,0.89535856,118330.0,118320.0,0.65915054]
[1752412712363,0.03450036,118330.0,118320.0,0.65915054]
[1752412712660,0.62326036,118330.0,118320.0,0.65915054]
[1752412713460,0.01862882,118330.0,118320.0,1.12177454]
[1752412713654,0.61177,118350.0,118340.0,0.2021339]
[1752412713860,0.61177,118350.0,118340.0,0.6350439]
[1752412714361,0.02305,118350.0,118340.0,0.6350439]
[1752412714556,0.07007,118350.0,118340.0,0.6350439]
[1752412714754,0.07007,118350.0,118340.0,0.6340439]
[1752412714952,0.10043,118350.0,118340.0,0.6340439]
[1752412715563,0.10043,118350.0,118340.0,0.6350439]
[1752412715759,0.04647389,118360.0,118350.0,0.2747597]
[1752412715960,0.70627389,118360.0,118350.0,0.2737597]
[1752412716160,0.70627389,118360.0,118350.0,0.6345597]
[1752412717659,0.70727389,118360.0,118350.0,0.6345597]
[1752412717862,0.70827389,118360.0,118350.0,0.6345597]
[1752412718258,0.70827389,118360.0,118350.0,0.2737597]
[1752412718458,0.70827389,118360.0,118350.0,0.6345597]
[1752412719062,0.87717929,118360.0,118350.0,0.70286047]
[1752412720764,0.87617929,118360.0,118350.0,0.70286047]
[1752412720966,0.87517929,118360.0,118350.0,0.70286047]
[1752412721168,0.87617929,118360.0,118350.0,0.70486047]
[1752412725669,0.89375289,118360.0,118350.0,0.70486047]
[1752412726069,0.89275289,118360.0,118350.0,0.70286047]
[1752412726271,0.89375289,118360.0,118350.0,0.70586047]
[1752412726970,0.89375289,118360.0,118350.0,0.2041197]
[1752412727171,1.25455289,118360.0,118350.0,0.1709197]
[1752412730577,1.25455289,118360.0,118350.0,0.1719197]
[1752412730766,1.25455289,118360.0,118350.0,0.1729197]
[1752412733274,1.61535289,118360.0,118350.0,0.1729197]
[1752412733986,1.61535289,118360.0,118350.0,0.004]
[1752412734176,1.78433689,118360.0,118350.0,0.004]
[1752412734679,1.61535289,118360.0,118350.0,0.004]
[1752412736785,1.61535289,118360.0,118350.0,0.003]
[1752412737382,0.1689197,118350.0,118340.0,0.295817]
[1752412737582,0.6496833,118350.0,118340.0,0.2533842]
[1752412738687,0.6496833,118350.0,118340.0,0.2563842]
[1752412738688,0.6506833,118350.0,118340.0,0.2563842]
[1752412738987,0.6506833,118350.0,118340.0,0.2573842]
[1752412743986,0.6506833,118350.0,118340.0,0.2151514]
[1752412744193,0.6506833,118350.0,118340.0,0.172934]
[1752412744791,0.6506833,118350.0,118340.0,0.004]
[1752412746096,0.2699982,118330.0,118320.0,0.00169026]
[1752412746291,1.61329542,118330.0,118320.0,0.00169026]
[1752412747195,1.61429542,118330.0,118320.0,0.00769026]
[1752412747395,1.25349542,118330.0,118320.0,0.01069026]
[1752412748592,1.25249542,118330.0,118320.0,0.00469026]
[1752412748794,1.25349542,118330.0,118320.0,0.00669026]
[1752412749293,1.25349542,118330.0,118320.0,0.17265276]
[1752412750598,1.31990154,118330.0,118320.0,0.17265276]
[1752412753107,1.31990154,118330.0,118320.0,0.00369026]
[1752412753995,1.25345542,118330.0,118320.0,0.27477266]
[1752412754203,1.25345542,118330.0,118320.0,0.29250941]
[1752412754495,1.25345542,118330.0,118320.0,0.26941941]
[1752412754701,1.25345542,118330.0,118320.0,0.29250941]
[1752412754902,0.66529542,118330.0,118320.0,0.29250941]
[1752412755103,1.25345542,118330.0,118320.0,0.29250941]
[1752412755702,0.89265542,118330.0,118320.0,0.29250941]
[1752412756204,1.25345542,118330.0,118320.0,0.29250941]
[1752412757202,0.89265542,118330.0,118320.0,0.29250941]
[1752412757403,1.25345542,118330.0,118320.0,0.29250941]
[1752412757704,0.66529542,118330.0,118320.0,0.29250941]
[1752412758004,1.25341542,118330.0,118320.0,0.29250941]
[1752412758999,0.66529542,118330.0,118320.0,0.26941941]
[1752412759295,1.25341542,118330.0,118320.0,0.26941941]
[1752412759907,1.25337542,118330.0,118320.0,0.26941941]
[1752412760105,0.89257542,118330.0,118320.0,0.26941941]
[1752412760304,1.25337542,118330.0,118320.0,0.19038941]
[1752412760505,1.25337542,118330.0,118320.0,0.02142701]
[1752412761801,0.2666968,118310.0,118300.0,0.26272743]
[1752412762104,1.24892375,118310.0,118300.0,0.217287]
[1752412763113,1.24892375,118310.0,118300.0,0.219287]
[1752412763412,1.24992375,118310.0,118300.0,0.225287]
[1752412767014,1.24992375,118310.0,118300.0,0.256007]
[1752412767805,0.66188375,118310.0,118300.0,0.256007]
[1752412768007,1.24988375,118310.0,118300.0,0.256007]
[1752412769002,0.08977695,118310.0,118300.0,0.639897]
[1752412769214,0.67777695,118310.0,118300.0,0.639897]
[1752412769707,0.08977695,118310.0,118300.0,0.639897]
[1752412769908,0.03438695,118310.0,118300.0,0.639897]
[1752412770512,0.0168649,118310.0,118300.0,0.639897]
[1752412771312,0.001,118310.0,118300.0,0.639897]
[1752412773816,0.001,118310.0,118300.0,1.227777]
[1752412775118,0.1699767,118310.0,118300.0,1.227777]
[1752412776219,0.1699768,118310.0,118300.0,1.227777]
[1752412777521,0.1928668,118310.0,118300.0,1.227777]
[1752412777716,0.2667368,118310.0,118300.0,0.639897]
[1752412777919,0.66130624,118310.0,118300.0,0.279097]
[1752412778121,1.24910624,118310.0,118300.0,0.256007]
[1752412778516,0.88830624,118310.0,118300.0,0.256007]
[1752412779516,0.88830624,118310.0,118300.0,0.280617]
[1752412780627,0.88830624,118310.0,118300.0,0.641417]
[1752412781523,0.88830624,118310.0,118300.0,0.616807]
[1752412781723,0.88830624,118310.0,118300.0,0.6168211]
[1752412783125,0.88826624,118310.0,118300.0,0.6168211]
[1752412783625,0.88826624,118310.0,118300.0,0.6414311]
[1752412783924,0.88822624,118310.0,118300.0,0.6414311]
[1752412784827,0.67691944,118310.0,118300.0,0.6414311]
[1752412785028,0.84589614,118310.0,118300.0,0.6414311]
[1752412785623,0.08919944,118310.0,118300.0,0.6414311]
[1752412785824,0.81431624,118310.0,118300.0,0.6414311]
[1752412789627,0.22663624,118310.0,118300.0,0.6414311]
[1752412789932,0.81431624,118310.0,118300.0,0.6414311]
[1752412790630,0.79679944,118310.0,118300.0,0.6414311]
[1752412790827,0.81433472,118310.0,118300.0,0.6414311]
[1752412792527,0.64535792,118310.0,118300.0,0.6414311]
[1752412792827,0.03478792,118310.0,118300.0,0.6414311]
[1752412793428,0.03478792,118310.0,118300.0,1.2290311]
[1752412794233,0.05767792,118310.0,118300.0,1.2290311]
[1752412795134,0.22665472,118310.0,118300.0,1.2290311]
[1752412796034,0.22665472,118310.0,118300.0,1.27447153]
[1752412796231,0.05767792,118310.0,118300.0,1.27447153]
[1752412801033,0.03478792,118310.0,118300.0,1.27447153]
[1752412801237,0.05767792,118310.0,118300.0,1.27447153]
[1752412801536,0.05769567,118310.0,118300.0,1.27447153]
[1752412801736,0.03480567,118310.0,118300.0,1.27447153]
[1752412805240,0.03480567,118310.0,118300.0,1.56807153]
[1752412805931,4e-08,118310.0,118300.0,1.5226311]
[1752412806137,0.04199362,118330.0,118320.0,0.1995625]
[1752412806336,0.05954387,118330.0,118320.0,0.6296025]
[1752412806844,0.03547387,118330.0,118320.0,1.62327877]
[1752412807141,0.01792362,118330.0,118320.0,1.64127906]
[1752412807542,0.01892362,118330.0,118320.0,1.64327906]
[1752412807739,0.003,118330.0,118320.0,1.64327906]
[1752412808642,0.003,118330.0,118320.0,1.64427906]
[1752412810144,0.003,118330.0,118320.0,1.59876279]
[1752412810658,0.003,118330.0,118320.0,1.64427906]
[1752412810832,0.003,118330.0,118320.0,1.59876279]
[1752412811143,0.003,118330.0,118320.0,1.64427906]
[1752412811344,0.003,118330.0,118320.0,1.64527906]
[1752412812147,0.003,118330.0,118320.0,1.93887906]
[1752412812537,0.003,118330.0,118320.0,2.10790306]
[1752412813342,0.02807,118370.0,118360.0,0.2686254]
[1752412813644,0.24617871,118370.0,118360.0,0.6294254]
[1752412813843,0.07728761,118370.0,118360.0,0.6294254]
[1752412814538,0.07928761,118370.0,118360.0,0.6294254]
[1752412814735,0.08128761,118370.0,118360.0,0.6304254]
[1752412814936,0.06378,118370.0,118360.0,0.6304254]
[1752412815143,0.06178,118370.0,118360.0,0.63883226]
[1752412815446,0.06278,118370.0,118360.0,0.63883226]
[1752412816746,0.2316712,118370.0,118360.0,0.63883226]
[1752412818342,0.2740012,118370.0,118360.0,0.63883226]
[1752412818845,0.28991708,118370.0,118360.0,0.2464954]
[1752412819045,0.28991708,118370.0,118360.0,0.2696254]
[1752412820838,0.28991708,118370.0,118360.0,0.2464954]
[1752412821949,0.30738267,118370.0,118360.0,0.2464954]
[1752412822750,0.30738211,118370.0,118360.0,0.6072954]
[1752412822943,0.28991708,118370.0,118360.0,0.2464954]
[1752412823144,0.28991708,118370.0,118360.0,0.2696254]
[1752412823545,0.30738181,118370.0,118360.0,0.2696254]
[1752412823740,0.28991708,118370.0,118360.0,0.2696254]
[1752412824756,0.30738191,118370.0,118360.0,0.2696254]
[1752412825052,0.30738191,118370.0,118360.0,0.2464954]
[1752412825754,0.28991708,118370.0,118360.0,0.2464954]
[1752412826152,0.30738256,118370.0,118360.0,0.2464954]
[1752412826744,0.66818256,118370.0,118360.0,0.2696254]
[1752412828053,0.30738256,118370.0,118360.0,0.2696254]
[1752412830753,0.83715056,118370.0,118360.0,0.001]
[1752412831657,0.8455932,118370.0,118360.0,0.001]
[1752412832760,0.83715056,118370.0,118360.0,0.001]
[1752412836872,0.83715056,118370.0,118360.0,0.04681]
[1752412837672,0.66818256,118370.0,118360.0,0.04681]
[1752412838075,0.67652459,118370.0,118360.0,0.001]
[1752412841779,0.66818256,118370.0,118360.0,0.001]
[1752412842279,0.67642829,118370.0,118360.0,0.001]
[1752412843781,0.1689055,118360.0,118350.0,0.0002]
[1752412843973,0.2637997,118350.0,118340.0,0.3492898]
[1752412844183,0.64206518,118350.0,118340.0,0.3490898]
[1752412845583,0.64306518,118350.0,118340.0,0.3500898]
[1752412847483,0.64306518,118350.0,118340.0,0.0967004]
[1752412847686,0.65938915,118350.0,118340.0,0.001]
[1752412847878,0.65938915,118350.0,118340.0,0.169934]
[1752412848177,0.65938915,118350.0,118340.0,0.215744]
[1752412848785,0.65938915,118350.0,118340.0,0.04681]
[1752412849485,0.65938915,118350.0,118340.0,0.215744]
[1752412852284,0.65938915,118350.0,118340.0,0.248084]
[1752412853782,0.61805915,118350.0,118340.0,0.271934]
[1752412853989,1.20501915,118350.0,118340.0,0.271934]
[1752412854494,0.22692915,118350.0,118340.0,0.271934]
[1752412854783,0.20370915,118350.0,118340.0,0.271934]
[1752412854988,0.79066915,118350.0,118340.0,0.271934]
[1752412856389,0.81388915,118350.0,118340.0,0.271934]
[1752412856584,0.03478945,118350.0,118340.0,0.632734]
[1752412859878,0.03478945,118350.0,118340.0,0.65017864]
[1752412861292,0.01732397,118350.0,118340.0,0.69555587]
[1752412861493,0.63001588,118370.0,118360.0,0.2709055]
[1752412861688,0.62433036,118370.0,118360.0,0.6317055]
[1752412861993,0.03745036,118370.0,118360.0,0.6317055]
[1752412862881,0.03945036,118370.0,118360.0,0.65029851]
[1752412863083,0.04345036,118370.0,118360.0,0.65029851]
[1752412866195,0.02591588,118370.0,118360.0,0.65029851]
[1752412867294,0.02191588,118370.0,118360.0,0.64929851]
[1752412867596,0.04701588,118370.0,118360.0,0.65029851]
[1752412869300,0.24702708,118370.0,118360.0,0.65029851]
[1752412869596,0.31302464,118370.0,118360.0,0.2719055]
[1752412869798,0.31102464,118370.0,118360.0,0.2719055]
[1752412870001,0.29352708,118370.0,118360.0,0.6327055]
[1752412870596,0.02091588,118370.0,118360.0,0.6327055]
[1752412871098,0.01991588,118370.0,118360.0,0.6317055]
[1752412871298,0.02091588,118370.0,118360.0,0.6327055]
[1752412871498,0.02191588,118370.0,118360.0,0.6327055]
[1752412872300,0.02091588,118370.0,118360.0,0.6327055]
[1752412872901,0.02091588,118370.0,118360.0,1.2193855]
[1752412880304,0.03842796,118370.0,118360.0,1.2193855]
[1752412880500,0.02091588,118370.0,118360.0,1.2193855]
[1752412880902,0.03842849,118370.0,118360.0,1.2193855]
[1752412885499,0.23141969,118370.0,118360.0,1.2191855]
[1752412886707,0.06252849,118370.0,118360.0,1.2191855]
[1752412887409,0.23141969,118370.0,118360.0,1.2191855]
[1752412887609,0.23141969,118370.0,118360.0,1.2192255]
[1752412888804,0.31103969,118370.0,118360.0,0.6327455]
[1752412889010,0.31103969,118370.0,118360.0,0.2719455]
[1752412890309,0.31103969,118370.0,118360.0,0.6327455]
[1752412891204,0.06252849,118370.0,118360.0,0.6327455]
[1752412891404,0.03842849,118370.0,118360.0,0.6327455]
[1752412895717,0.03842849,118370.0,118360.0,0.2719455]
[1752412896014,0.03842849,118370.0,118360.0,0.67812273]
[1752412896516,0.03842849,118370.0,118360.0,0.6327455]
[1752412897218,0.02251261,118370.0,118360.0,0.6327455]
[1752412897719,0.02251261,118370.0,118360.0,0.67812273]
[1752412904426,0.0225768,118370.0,118360.0,0.67812273]
[1752412904822,0.0467868,118370.0,118360.0,0.67812273]
[1752412905726,0.0467868,118370.0,118360.0,1.26440273]
[1752412906027,0.0467868,118370.0,118360.0,0.67812273]
[1752412906221,0.0467868,118370.0,118360.0,1.26436273]
[1752412908326,0.0467868,118370.0,118360.0,0.67812273]
[1752412908528,0.0467868,118370.0,118360.0,1.26436273]
[1752412909225,0.2156779,118370.0,118360.0,1.26436273]
[1752412909728,0.2156779,118370.0,118360.0,0.67812273]
[1752412909924,0.2156779,118370.0,118360.0,1.26436273]
[1752412910124,0.2156779,118370.0,118360.0,0.67812273]
[1752412910319,0.0467868,118370.0,118360.0,1.26432273]
[1752412910523,0.0467868,118370.0,118360.0,0.67812273]
[1752412910724,0.0467868,118370.0,118360.0,1.26432273]
[1752412911027,0.0225768,118370.0,118360.0,1.26432273]
[1752412911727,0.0225768,118370.0,118360.0,0.67812273]
[1752412912026,0.0225768,118370.0,118360.0,1.26432273]
[1752412912926,0.215678,118370.0,118360.0,1.26432273]
[1752412913227,0.248388,118370.0,118360.0,1.26428273]
[1752412913427,0.0794968,118370.0,118360.0,1.26428273]
[1752412914117,0.0467868,118370.0,118360.0,1.26428273]
[1752412916128,0.0467868,118370.0,118360.0,1.2189055]
[1752412916729,0.215678,118370.0,118360.0,1.2189055]
[1752412916929,0.248388,118370.0,118360.0,1.2189055]
[1752412917232,0.0794968,118370.0,118360.0,1.2189055]
[1752412917730,0.0467868,118370.0,118360.0,1.2189055]
[1752412920929,0.0467868,118370.0,118360.0,0.8581055]
[1752412921125,0.0467868,118370.0,118360.0,0.6327455]
[1752412921331,0.248388,118370.0,118360.0,1.2188255]
[1752412921732,0.0467868,118370.0,118360.0,1.2188255]
[1752412922631,0.0225768,118370.0,118360.0,1.2188255]
[1752412925135,0.0225768,118370.0,118360.0,1.2198255]
[1752412926835,0.0225768,118370.0,118360.0,1.26520273]
[1752412927838,0.02343,118390.0,118380.0,0.1688769]
[1752412928044,0.04093317,118390.0,118380.0,0.6312569]
[1752412928238,0.20979587,118390.0,118380.0,0.6312569]
[1752412928646,0.20979587,118390.0,118380.0,0.63958451]
[1752412928846,0.20979587,118390.0,118380.0,0.27778451]
[1752412929249,0.23998587,118390.0,118380.0,0.27778451]
[1752412929448,0.24198587,118390.0,118380.0,0.27878451]
[1752412929647,0.28744587,118390.0,118380.0,0.27878451]